bitfinex-derivatives/quotes_ETHF0:USTF0_20250330
["timestamp","ask_amount","ask_price","bid_price","bid_amount"]
[1743328681088,2.46389,1843.0,1842.9,1.4572]
[1743328681690,1.3784,1843.0,1842.9,1.4572]
[1743328684983,1.3784,1843.0,1842.9,2.54274]
[1743328685195,1.3784,1843.0,1842.9,1.4572]
[1743328687491,0.00812656,1843.1,1842.9,1.4572]
[1743328687695,0.00812656,1843.1,1843.0,7.73329]
[1743328687894,1.4341,1843.6,1843.5,1.08519]
[1743328688500,1.4341,1843.6,1843.4,1.08521]
[1743328688803,1.4341,1843.6,1843.5,1.08519]
[1743328688997,1.4341,1843.6,1843.4,1.08521]
[1743328689298,1.4341,1843.6,1843.5,2.50749]
[1743328689896,1.4341,1843.6,1843.5,1.4223]
[1743328691098,1.4341,1843.6,1843.5,2.50749]
[1743328692592,1.4341,1843.6,1843.5,1.4223]
[1743328692801,1.4341,1843.6,1843.5,2.50749]
[1743328693000,1.4341,1843.6,1843.3,3.444]
[1743328693197,1.08523,1843.5,1843.3,1.08531]
[1743328693393,1.4727,1843.4,1843.3,2.55021]
[1743328696599,1.4727,1843.4,1843.3,1.4649]
[1743328696996,1.4727,1843.4,1843.3,2.55021]
[1743328700703,4.30104656,1843.7,1843.5,1.08519]
[1743328700899,1.4635,1843.6,1843.5,1.08519]
[1743328701304,0.00812656,1843.7,1843.6,1.08513]
[1743328702116,0.00812656,1843.7,1843.6,4.29293]
[1743328702408,0.00812656,1843.7,1843.6,5.04283]
[1743328703305,1.4116,1844.0,1843.9,1.08496]
[1743328705012,1.4116,1844.0,1843.9,1.77686]
[1743328705316,0.00812656,1844.1,1844.0,1.0849]
[1743328705509,1.41972656,1844.1,1844.0,1.0849]
[1743328708315,1.08496,1843.9,1843.8,0.00812656]
[1743328708507,4.29276,1843.9,1843.8,0.00812656]
[1743328708708,1.08517,1843.6,1843.4,1.81835]
[1743328709214,1.4223,1843.5,1843.4,1.81835]
[1743328711016,1.4223,1843.5,1843.4,0.7331]
[1743328713014,1.4223,1843.5,1843.4,1.81835]
[1743328714022,1.4223,1843.5,1843.4,0.7331]
[1743328714821,1.4223,1843.5,1843.4,2.16]
[1743328715218,1.08511,1843.7,1843.5,1.08517]
[1743328715425,3.21592656,1844.1,1843.6,4.6347]
[1743328715723,1.4021,1844.0,1843.8,1.08498]
[1743328715921,1.4021,1844.0,1843.9,2.1273]
[1743328716618,2.487,1844.0,1843.9,2.1273]
[1743328717815,1.4021,1844.0,1843.9,3.21226]
[1743328718925,1.08515,1843.6,1843.4,1.08523]
[1743328719225,1.4886,1843.5,1843.4,2.45975]
[1743328723426,1.4502,1843.6,1843.5,1.08519]
[1743328724424,1.4502,1843.6,1843.4,2.45969]
[1743328724626,2.53537,1843.6,1843.4,2.45972]
[1743328724827,1.4502,1843.6,1843.5,1.37]
[1743328725229,1.4502,1843.6,1843.5,2.45519]
[1743328728733,1.4502,1843.6,1843.5,3.20929]
[1743328730930,4.5973,1843.9,1843.8,1.08502]
[1743328731131,2.1765,1843.9,1843.8,1.08502]
[1743328731438,2.1765,1843.9,1843.7,1.08503]
[1743328731621,1.4885,1843.8,1843.7,2.46213]
[1743328735037,1.4885,1843.8,1843.6,0.6925]
[1743328735336,1.08507,1843.7,1843.6,2.067]
[1743328736036,2.56777,1843.7,1843.6,2.067]
[1743328736237,2.56777,1843.7,1843.6,0.6925]
[1743328737031,1.08513,1843.6,1843.5,4.54816]
[1743328737231,1.3642,1843.6,1843.5,4.54816]
[1743328737635,1.3642,1843.6,1843.5,5.92276]
[1743328739443,1.3642,1843.6,1843.5,2.45976]
[1743328746546,1.3642,1843.6,1843.5,1.3746]
[1743328746744,2.44933,1843.6,1843.5,1.3746]
[1743328749857,2.44933,1843.6,1843.5,2.45979]
[1743328750459,2.44933,1843.6,1843.5,1.08519]
[1743328750852,1.3642,1843.6,1843.5,1.08519]
[1743328751255,1.3642,1843.6,1843.5,2.49049]
[1743328751466,2.44933,1843.6,1843.5,2.49049]
[1743328751650,2.44933,1843.6,1843.5,1.4053]
[1743328752660,2.44933,1843.6,1843.5,2.49049]
[1743328752861,2.44933,1843.6,1843.5,1.4053]
[1743328753263,2.44933,1843.6,1843.5,2.49049]
[1743328753558,2.44933,1843.6,1843.5,1.4053]
[1743328757956,1.3642,1843.6,1843.5,2.49049]
[1743328758661,1.085,1843.9,1843.6,1.0851]
[1743328758860,1.4206,1843.8,1843.7,0.7024]
[1743328759165,1.4206,1843.8,1843.7,2.9337]
[1743328759464,2.50562,1843.8,1843.7,2.9337]
[1743328759662,1.4206,1843.8,1843.7,2.9337]
[1743328759871,1.4206,1843.8,1843.7,4.01877]
[1743328766267,2.50562,1843.8,1843.7,4.01877]
[1743328766665,2.50562,1843.8,1843.7,2.9337]
[1743328767272,2.50562,1843.8,1843.7,4.01877]
[1743328767974,2.50562,1843.8,1843.7,2.9337]
[1743328769666,2.50562,1843.8,1843.7,4.01877]
[1743328770272,1.08493,1844.0,1843.8,1.08496]
[1743328770579,4.30079656,1844.1,1843.8,1.4451]
[1743328770775,4.30079656,1844.1,1843.9,1.08496]
[1743328770972,4.30079656,1844.1,1844.0,1.4451]
[1743328771174,4.30079656,1844.1,1844.0,3.2699]
[1743328771372,1.09299656,1844.1,1844.0,3.2699]
[1743328771874,0.00812656,1844.1,1844.0,3.2699]
[1743328774177,1.41022656,1844.1,1844.0,3.2699]
[1743328779077,7.35222656,1844.1,1843.3,4.30120656]
[1743328779275,7.35222656,1844.1,1843.3,3.21592656]
[1743328779276,1.08525,1843.4,1843.3,3.21592656]
[1743328784182,1.3701,1843.5,1843.3,3.21592656]
[1743328784484,2.45531,1843.5,1843.3,4.30121656]
[1743328784679,1.08525,1843.4,1843.3,3.21592656]
[1743328784883,2.47045,1843.4,1843.3,0.00812656]
[1743328791984,2.47045,1843.4,1843.3,1.40542656]
[1743328799785,2.47045,1843.4,1843.3,0.00812656]
[1743328806481,5.67825,1843.4,1843.3,0.00812656]
[1743328813796,1.0856,1842.8,1842.7,1.08564]
[1743328813990,1.0856,1842.8,1842.7,0.69400748]
[1743328814396,1.08558,1842.9,1842.8,1.0856]
[1743328814586,1.08556,1842.9,1842.7,1.77963748]
[1743328814785,1.0856,1842.8,1842.7,0.69400748]
[1743328815194,1.0856,1842.8,1842.7,2.13610748]
[1743328816092,2.53009,1842.9,1842.7,2.13610748]
[1743328816293,2.53009,1842.9,1842.8,1.4387]
[1743328822211,0.00812656,1843.0,1842.8,1.4387]
[1743328822401,1.08528,1843.4,1843.2,1.08535]
[1743328822702,1.08523,1843.5,1843.3,2.1093]
[1743328823002,1.08523,1843.5,1843.4,1.3747]
[1743328824204,4.29303,1843.5,1843.4,1.3747]
[1743328825804,5.01093,1843.5,1843.4,1.3747]
[1743328826898,4.29303,1843.5,1843.4,1.3747]
[1743328830503,1.08523,1843.5,1843.4,1.3747]
[1743328830698,4.29303,1843.5,1843.4,1.3747]
[1743328835312,4.29303,1843.5,1843.4,2.0856]
[1743328837506,1.08523,1843.5,1843.4,2.0856]
[1743328838914,4.29303,1843.5,1843.4,2.0856]
[1743328840217,1.08523,1843.5,1843.4,2.0856]
[1743328841118,2.55633,1843.5,1843.4,2.0856]
[1743328841916,0.00812656,1843.6,1843.4,2.0856]
[1743328842113,0.00812656,1843.6,1843.5,5.73439]
[1743328843016,1.09325656,1843.6,1843.5,5.73439]
[1743328843215,0.00812656,1843.6,1843.5,5.73439]
[1743328846320,0.00812656,1843.6,1843.5,2.52659]
[1743328848519,1.09325656,1843.6,1843.5,2.52659]
[1743328848725,0.00812656,1843.6,1843.5,2.52659]
[1743328851325,1.09325656,1843.6,1843.5,1.4414]
[1743328851821,1.80975656,1843.6,1843.5,1.4414]
[1743328852125,1.08519,1843.5,1843.4,3.9187]
[1743328852325,2.56829,1843.5,1843.4,5.3961]
[1743328853422,1.08525,1843.4,1843.3,0.6872]
[1743328853728,2.56835,1843.4,1843.3,2.1646]
[1743328854026,1.08537,1843.2,1843.1,0.6875]
[1743328854226,1.4831,1843.3,1843.1,1.77291]
[1743328854422,1.08537,1843.2,1843.1,0.6875]
[1743328854823,2.56847,1843.2,1843.1,0.6875]
[1743328855028,1.4831,1843.2,1843.1,3.25033]
[1743328855524,1.08566,1842.7,1842.6,0.00812656]
[1743328855730,1.08566,1842.7,1842.6,1.41613404]
[1743328857327,1.08566,1842.7,1842.6,2.14733404]
[1743328861137,1.4646,1842.8,1842.6,3.23305404]
[1743328861337,2.5502,1842.8,1842.7,1.5048]
[1743328861738,1.4646,1842.8,1842.7,2.59046]
[1743328861938,2.5502,1842.8,1842.7,1.5048]
[1743328864440,2.5502,1842.8,1842.6,2.5256]
[1743328867239,3.2078,1843.1,1842.6,1.4399]
[1743328867442,3.2078,1843.1,1842.9,1.08551]
[1743328867443,2.57794,1843.1,1842.9,1.08551]
[1743328867646,2.57794,1843.1,1843.0,0.7011]
[1743328867851,2.56134748,1843.1,1843.0,0.7011]
[1743328868048,1.08554,1842.9,1842.8,3.472]
[1743328868348,0.7484,1843.0,1842.7,0.7011]
[1743328868649,1.08566,1842.7,1842.6,0.7087]
[1743328868950,1.08572,1842.6,1842.5,3.91702656]
[1743328870050,1.08572,1842.6,1842.5,0.70922656]
[1743328870247,1.08572,1842.6,1842.5,0.00812656]
[1743328870443,4.29352,1842.6,1842.5,0.00812656]
[1743328870845,1.08572,1842.6,1842.5,0.00812656]
[1743328871950,2.46128,1842.7,1842.5,1.09388656]
[1743328872153,2.46128,1842.7,1842.5,0.00812656]
[1743328872453,2.46132,1842.6,1842.5,0.00812656]
[1743328880055,2.46132,1842.6,1842.5,1.37402656]
[1743328881147,2.46132,1842.6,1842.5,0.00812656]
[1743328882360,2.71464,1842.4,1841.6,3.2078]
[1743328882548,1.08624,1841.8,1841.6,5.02559]
[1743328882753,5.92281,1842.2,1841.6,3.9393]
[1743328882754,6.1941,1842.1,1841.6,3.9393]
[1743328882948,1.08622,1841.8,1841.7,1.4897]
[1743328883757,1.08625,1841.7,1841.6,3.21592656]
[1743328883958,2.58045,1841.7,1841.6,3.21592656]
[1743328886265,2.58045,1841.7,1841.6,4.68382656]
[1743328886456,1.4942,1841.7,1841.6,4.68382656]
[1743328886656,1.4942,1841.7,1841.6,5.77013656]
[1743328886856,1.4942,1841.7,1841.6,4.68382656]
[1743328888064,2.58045,1841.7,1841.6,4.68382656]
[1743328888366,1.4942,1841.7,1841.6,4.68382656]
[1743328888862,2.58045,1841.7,1841.6,4.68382656]
[1743328890261,2.58045,1841.7,1841.6,1.47602656]
[1743328890665,2.58045,1841.7,1841.6,0.00812656]
[1743328890666,5.78825,1841.7,1841.6,0.00812656]
[1743328892269,6.47915,1841.7,1841.6,0.00812656]
[1743328893170,3.27135,1841.7,1841.6,0.00812656]
[1743328893369,6.47915,1841.7,1841.6,0.00812656]
[1743328897772,5.78825,1841.7,1841.6,0.00812656]
[1743328898167,4.29405,1841.7,1841.6,0.00812656]
[1743328898369,1.08621,1841.8,1841.7,1.08624]
[1743328898672,1.08621,1841.8,1841.7,1.4545]
[1743328899577,4.29401,1841.8,1841.7,1.4545]
[1743328903273,1.46062656,1841.9,1841.7,1.4545]
[1743328903578,2.54680656,1841.9,1841.8,0.7126]
[1743328903968,2.54680656,1841.9,1841.8,2.1526]
[1743328905479,1.09430656,1841.9,1841.8,2.1526]
[1743328905881,2.57530656,1841.9,1841.8,2.1526]
[1743328906179,2.57530656,1841.9,1841.8,3.23879]
[1743328906880,2.57530656,1841.9,1841.8,2.1526]
[1743328907782,2.57530656,1841.9,1841.8,3.23879]
[1743328907982,0.00812656,1841.9,1841.8,3.23879]
[1743328915287,0.00812656,1841.9,1841.8,3.97169]
[1743328919484,1.08586,1842.4,1842.2,1.08592]
[1743328919685,5.67756,1842.4,1842.3,2.8706]
[1743328920187,5.67756,1842.4,1842.3,2.127]
[1743328921086,5.67756,1842.4,1842.0,4.2126]
[1743328921087,1.08594,1842.3,1842.1,1.08598]
[1743328921288,3.20214,1842.3,1842.1,2.46838]
[1743328921479,1.08596,1842.2,1842.1,2.46838]
[1743328921685,1.3839,1842.2,1842.1,2.46838]
[1743328923182,4.29369,1842.4,1842.2,1.08591]
[1743328923391,4.6181,1842.4,1842.3,3.2869]
[1743328924486,5.70394,1842.4,1842.3,3.2869]
[1743328924785,1.41732656,1842.5,1842.4,1.08584]
[1743328924786,0.00812656,1842.5,1842.4,1.08584]
[1743328924981,0.00812656,1842.5,1842.4,2.58474]
[1743328925179,0.00812656,1842.5,1842.4,3.32234]
[1743328925687,0.00812656,1842.5,1842.4,6.53014]
[1743328926187,3.2078,1843.0,1842.4,7.9443]
[1743328926486,2.44746,1842.9,1842.7,1.08566]
[1743328926687,1.3619,1842.8,1842.6,1.08568]
[1743328926890,2.44751,1842.8,1842.6,1.08568]
[1743328927087,1.08567,1842.7,1842.5,2.51816656]
[1743328927389,2.44757,1842.7,1842.5,2.51816656]
[1743328927592,1.3619,1842.7,1842.5,2.51816656]
[1743328927890,1.3619,1842.6,1842.5,2.51816656]
[1743328929480,1.3619,1842.6,1842.5,1.09390656]
[1743328930090,1.3619,1842.6,1842.5,2.54220656]
[1743328931782,1.3619,1842.6,1842.5,1.45642656]
[1743328931988,2.44762,1842.6,1842.5,0.00812656]
[1743328935496,2.44762,1842.6,1842.5,1.09390656]
[1743328935497,1.3619,1842.6,1842.5,1.09390656]
[1743328935690,1.3619,1842.6,1842.5,3.23790656]
[1743328938501,1.3619,1842.6,1842.5,6.44570656]
[1743328939205,1.3619,1842.6,1842.5,5.35992656]
[1743328939401,1.3619,1842.6,1842.5,6.44570656]
[1743328939601,1.3619,1842.6,1842.5,3.23790656]
[1743328942291,0.00812656,1842.9,1842.8,1.0856]
[1743328942495,1.46072656,1842.9,1842.8,1.0856]
[1743328942691,2.54626656,1842.9,1842.7,2.54193]
[1743328942911,3.24706656,1842.9,1842.7,2.54193]
[1743328943201,1.4526,1842.8,1842.7,2.54193]
[1743328944602,2.5382,1842.8,1842.7,1.4563]
[1743328944802,1.4526,1842.8,1842.7,2.54196]
[1743328945803,0.70892656,1842.9,1842.8,1.0856]
[1743328945804,0.00812656,1842.9,1842.8,1.0856]
[1743328946397,0.00812656,1842.9,1842.7,3.47]
[1743328946398,1.09371656,1842.9,1842.5,6.68692656]
[1743328946600,1.82451656,1842.9,1842.7,1.08565]
[1743328946792,0.73892656,1842.9,1842.8,1.0856]
[1743328946996,0.00812656,1842.9,1842.8,1.0856]
[1743328947707,0.00812656,1842.9,1842.8,3.205]
[1743328949508,3.2078,1843.4,1842.8,8.0914]
[1743328949804,3.2078,1843.4,1843.0,3.2078]
[1743328949805,1.39080748,1843.3,1843.0,3.2078]
[1743328950000,1.39080748,1843.3,1843.2,1.08537]
[1743328950401,1.39080748,1843.3,1843.2,3.29477]
[1743328954803,2.47611748,1843.3,1843.2,2.2094]
[1743328955005,1.39080748,1843.3,1843.2,3.29477]
[1743328956111,1.39080748,1843.3,1843.1,0.7455]
[1743328956311,1.08537,1843.2,1843.1,1.83091]
[1743328956610,3.19825748,1843.3,1843.1,1.83091]
[1743328956806,1.3865,1843.2,1843.1,3.28071]
[1743328957403,1.3865,1843.2,1843.1,1.08541]
[1743328957613,2.47187,1843.2,1843.1,1.08541]
[1743328957911,2.47187,1843.2,1843.0,5.74304]
[1743328958111,2.47187,1843.2,1843.1,1.08543]
[1743328959613,2.47187,1843.2,1843.1,2.50233]
[1743328962315,2.47187,1843.2,1843.1,1.4169]
[1743328964518,1.08537,1843.2,1843.1,1.4169]
[1743328965916,1.08543,1843.1,1842.9,2.4821]
[1743328966118,1.08543,1843.1,1843.0,1.37590748]
[1743328966320,1.06883748,1843.1,1843.0,2.46139748]
[1743328967408,1.08541,1843.2,1843.1,1.08543]
[1743328967821,0.7221,1843.3,1843.0,1.37590748]
[1743328968022,1.08538,1843.2,1843.1,1.08542]
[1743328970124,1.08543,1843.1,1843.0,1.37590748]
[1743328970324,3.2078,1843.2,1842.9,2.48212]
[1743328970621,1.08543,1843.1,1843.0,1.08549]
[1743328970823,4.29321,1843.2,1843.0,2.44949]
[1743328971126,1.08541,1843.2,1843.0,2.44949]
[1743328971323,1.08541,1843.2,1843.1,2.47493]
[1743328971525,1.08537,1843.2,1843.1,1.3895]
[1743328971828,1.08537,1843.2,1843.1,2.47493]
[1743328972021,1.08537,1843.2,1843.1,1.3895]
[1743328972722,1.08534,1843.3,1843.1,1.3895]
[1743328972918,1.08534,1843.3,1843.2,0.6935]
[1743328973120,1.08534,1843.3,1843.2,1.3894]
[1743328973615,1.08534,1843.3,1843.2,2.7789]
[1743328974014,1.08534,1843.3,1843.2,3.86427]
[1743328974215,4.30121656,1843.4,1843.2,2.7789]
[1743328974414,4.30121656,1843.4,1843.3,1.3803]
[1743328974816,5.74991656,1843.4,1843.3,1.3803]
[1743328978324,2.54211656,1843.4,1843.3,1.3803]
[1743328984842,1.08531,1843.3,1843.2,1.3894]
[1743328985143,2.52461,1843.3,1843.2,2.8725]
[1743328986440,3.21311,1843.3,1843.2,2.8725]
[1743328987638,1.08572,1842.6,1842.5,3.21592656]
[1743328987942,1.08584,1842.4,1842.3,5.06705005]
[1743328988143,1.08584,1842.4,1842.3,3.2078]
[1743328988845,1.08584,1842.4,1842.3,3.9041]
[1743328989234,1.08584,1842.4,1842.3,2.1704]
[1743328993135,1.4506,1842.5,1842.3,2.1704]
[1743328993341,1.08575,1842.6,1842.4,3.24762]
[1743328993541,3.491,1842.7,1842.5,1.4369]
[1743328993737,1.4725,1842.7,1842.5,1.4369]
[1743328993943,1.08572,1842.6,1842.5,1.4369]
[1743328994142,1.4725,1842.7,1842.5,1.4369]
[1743328994346,1.08572,1842.6,1842.5,1.4369]
[1743328996853,1.4725,1842.7,1842.5,1.4369]
[1743328997148,1.08572,1842.6,1842.5,1.4369]
[1743329002060,2.5582,1842.7,1842.5,2.52265]
[1743329002259,1.08572,1842.6,1842.5,1.4369]
[1743329002458,2.5582,1842.7,1842.5,1.08578]
[1743329002654,1.4725,1842.7,1842.5,1.08578]
[1743329002862,1.08574,1842.6,1842.4,1.8107]
[1743329004561,2.5582,1842.7,1842.5,1.08578]
[1743329004761,1.4725,1842.7,1842.6,1.08572]
[1743329005360,2.55819,1842.7,1842.6,1.08572]
[1743329005851,1.08572,1842.6,1842.5,0.7186]
[1743329006564,2.55821,1842.7,1842.5,1.80438]
[1743329007162,1.4725,1842.7,1842.6,1.08572]
[1743329007362,2.55816,1842.7,1842.6,1.08572]
[1743329007560,1.4725,1842.7,1842.6,1.08572]
[1743329007764,2.55816,1842.7,1842.6,1.08572]
[1743329007963,1.4725,1842.7,1842.6,1.08572]
[1743329008564,2.55816,1842.7,1842.6,1.08572]
[1743329009865,2.55816,1842.7,1842.5,1.80433]
[1743329010068,1.08572,1842.6,1842.5,0.7186]
[1743329010270,2.44942,1842.6,1842.5,0.7186]
[1743329012164,2.44942,1842.6,1842.5,1.80438]
[1743329013466,2.44942,1842.6,1842.5,0.7186]
[1743329014162,2.44942,1842.6,1842.5,1.80438]
[1743329014566,2.44942,1842.6,1842.5,0.7186]
[1743329014865,2.44942,1842.6,1842.5,2.169]
[1743329015674,1.08578,1842.5,1842.4,3.9327]
[1743329015869,3.23678,1842.5,1842.4,3.9327]
[1743329016774,3.23678,1842.5,1842.4,0.7249]
[1743329017373,3.23678,1842.5,1842.4,2.1092]
[1743329020966,2.48678,1842.5,1842.4,2.1092]
[1743329021668,2.48678,1842.5,1842.4,3.19504]
[1743329022075,1.401,1842.5,1842.4,3.19504]
[1743329023275,2.55912,1842.7,1842.5,1.08578]
[1743329023573,2.55912,1842.7,1842.6,1.3892]
[1743329023776,1.08572,1842.7,1842.6,1.3892]
[1743329024379,1.08572,1842.7,1842.6,2.47492]
[1743329024574,1.08564,1842.8,1842.6,2.47492]
[1743329024778,1.08564,1842.8,1842.7,2.1009]
[1743329024980,3.2078,1842.9,1842.7,3.18654]
[1743329025277,4.29334,1842.9,1842.8,1.3892]
[1743329025481,4.29334,1842.9,1842.8,2.1175]
[1743329026775,3.2078,1842.9,1842.8,3.2031]
[1743329026974,4.29326,1843.1,1842.9,1.08552]
[1743329027174,1.08546,1843.1,1843.0,2.1323]
[1743329027376,1.06886748,1843.1,1843.0,2.1323]
[1743329028776,3.2078,1843.3,1843.0,2.1323]
[1743329028984,1.08537,1843.2,1843.1,3.16711]
[1743329029180,1.08537,1843.2,1843.1,0.7157]
[1743329030079,4.29315,1843.3,1843.1,1.80111]
[1743329032086,1.08537,1843.2,1843.1,0.7157]
[1743329032286,1.08543,1843.1,1843.0,0.7125]
[1743329033300,1.79001,1843.2,1843.0,1.79799]
[1743329034892,1.3703,1843.1,1843.0,1.79799]
[1743329036097,1.3703,1843.1,1843.0,2.34119]
[1743329037703,1.08534,1843.3,1843.1,1.08541]
[1743329037900,1.4469,1843.2,1843.1,1.08541]
[1743329038698,5.01531656,1843.4,1843.2,1.08537]
[1743329038899,1.3804,1843.3,1843.2,1.08537]
[1743329041401,3.21592656,1843.4,1843.3,1.08531]
[1743329042000,4.70622656,1843.4,1843.3,1.08531]
[1743329043304,0.00812656,1843.4,1843.3,1.08531]
[1743329043807,0.00812656,1843.4,1843.3,4.29311]
[1743329044900,0.00812656,1843.4,1843.3,5.71121]
[1743329049702,0.00812656,1843.4,1843.3,2.50341]
[1743329053609,0.00812656,1843.4,1843.3,3.19611]
[1743329055412,0.00812656,1843.4,1843.3,3.91181]
[1743329056514,0.00812656,1843.4,1843.3,4.45501]
[1743329057900,1.4717,1843.5,1843.3,4.45501]
[1743329057901,1.4717,1843.5,1843.4,1.08525]
[1743329058108,1.4717,1843.5,1843.4,9.22685]
[1743329061906,0.00812656,1843.6,1843.5,1.08519]
[1743329062105,1.50132656,1843.6,1843.5,2.45129]
[1743329064918,0.00812656,1843.6,1843.5,2.45129]
[1743329067615,3.2078,1844.0,1843.5,1.3661]
[1743329067814,3.2078,1844.0,1843.4,9.38089]
[1743329067815,1.362,1843.9,1843.6,8.83154]
[1743329068022,1.362,1843.9,1843.8,1.08502]
[1743329068520,1.362,1843.9,1843.7,6.03445]
[1743329068721,0.6975,1843.8,1843.7,6.03445]
[1743329069122,1.362,1843.9,1843.8,1.08502]
[1743329069323,1.362,1843.9,1843.8,2.51302]
[1743329071918,1.362,1843.9,1843.8,1.08502]
[1743329076025,1.362,1843.9,1843.8,1.62742]
[1743329076218,1.362,1843.9,1843.8,2.50782]
[1743329076418,1.362,1843.9,1843.8,3.05022]
[1743329076620,1.362,1843.9,1843.8,2.50782]
[1743329076820,1.362,1843.9,1843.8,3.05022]
[1743329077323,1.362,1843.9,1843.8,2.50782]
[1743329079528,1.362,1843.9,1843.8,3.05022]
[1743329079918,1.362,1843.9,1843.8,2.50782]
[1743329080123,1.362,1843.9,1843.8,1.62742]
[1743329080322,1.362,1843.9,1843.8,1.08502]
[1743329080724,1.362,1843.9,1843.8,2.48242]
[1743329081124,1.362,1843.9,1843.8,3.02482]
[1743329081323,1.362,1843.9,1843.8,2.48242]
[1743329081825,1.362,1843.9,1843.8,3.02482]
[1743329082329,1.362,1843.9,1843.8,2.48242]
[1743329082730,1.362,1843.9,1843.8,3.02482]
[1743329082924,1.362,1843.9,1843.7,1.08507]
[1743329083127,1.78352,1843.8,1843.6,7.34499]
[1743329083427,1.3983,1843.7,1843.6,7.88739]
[1743329083733,1.3983,1843.7,1843.6,7.34499]
[1743329083934,1.3983,1843.7,1843.6,7.88739]
[1743329084133,1.3983,1843.7,1843.6,7.34499]
[1743329084432,1.3983,1843.7,1843.6,7.88819]
[1743329084633,1.3983,1843.7,1843.6,7.34499]
[1743329085633,1.3983,1843.7,1843.6,7.88819]
[1743329085830,1.3983,1843.7,1843.6,7.34499]
[1743329086328,1.3983,1843.7,1843.6,7.88819]
[1743329086730,1.3983,1843.7,1843.6,7.34499]
[1743329087528,1.3983,1843.7,1843.6,7.88819]
[1743329087729,1.3983,1843.7,1843.6,7.34499]
[1743329087930,1.3983,1843.7,1843.6,6.63659]
[1743329089233,1.3983,1843.7,1843.6,7.17979]
[1743329089534,1.3983,1843.7,1843.6,6.63659]
[1743329089735,1.3983,1843.7,1843.6,7.17979]
[1743329089937,1.3983,1843.7,1843.6,6.63659]
[1743329090329,1.3983,1843.7,1843.6,7.17979]
[1743329090536,1.3983,1843.7,1843.6,6.63659]
[1743329090832,1.79056656,1844.0,1843.6,5.5515]
[1743329091131,1.4825,1843.9,1843.8,1.08498]
[1743329091338,1.4825,1843.9,1843.8,2.44568]
[1743329096944,1.4825,1843.9,1843.8,5.65348]
[1743329097147,0.00812656,1844.0,1843.9,1.08496]
[1743329097445,0.00812656,1844.0,1843.9,3.19986]
[1743329097645,1.47732656,1844.0,1843.9,3.19986]
[1743329099545,2.56222656,1844.0,1843.9,3.19986]
[1743329099847,1.08496,1843.9,1843.8,1.08497]
[1743329100046,1.08502,1843.8,1843.7,1.4095]
[1743329100246,1.80042,1843.8,1843.7,1.80857]
[1743329100447,3.2062,1843.9,1843.8,1.08502]
[1743329100648,2.5402,1843.9,1843.8,1.08502]
[1743329100838,2.5402,1843.9,1843.7,3.19693]
[1743329101039,2.5402,1843.9,1843.8,1.3884]
[1743329103351,2.5402,1843.9,1843.8,2.47342]
[1743329103848,2.5402,1843.9,1843.8,1.3884]
[1743329108455,1.8004,1843.9,1843.8,2.47342]
[1743329108750,1.8004,1843.9,1843.8,3.17972]
[1743329108952,1.085,1843.9,1843.8,3.17972]
[1743329112155,1.09305656,1844.0,1843.9,1.08496]
[1743329112357,0.00812656,1844.0,1843.9,2.51316]
[1743329112552,1.09302656,1844.0,1843.9,2.51316]
[1743329112747,0.00812656,1844.0,1843.9,2.51316]
[1743329113444,1.09302656,1844.0,1843.9,2.51316]
[1743329114850,2.58562656,1844.0,1843.9,2.51316]
[1743329117655,1.50072656,1844.0,1843.9,2.51316]
[1743329118256,2.58562656,1844.0,1843.9,1.4282]
[1743329118856,2.58562656,1844.0,1843.9,2.51316]
[1743329119266,2.58562656,1844.0,1843.9,1.4282]
[1743329120056,1.50072656,1844.0,1843.7,1.2659]
[1743329120363,1.08502,1843.8,1843.7,2.2324]
[1743329120763,2.51982,1843.8,1843.7,2.2324]
[1743329122963,3.24712,1843.8,1843.7,2.2324]
[1743329123264,1.08507,1843.7,1843.6,5.75212]
[1743329123455,2.48887,1843.7,1843.6,5.20972]
[1743329123658,2.48887,1843.7,1843.6,6.64782]
[1743329124361,2.48887,1843.7,1843.6,3.75802]
[1743329125164,2.48887,1843.7,1843.6,2.1297]
[1743329127062,1.4038,1843.7,1843.6,3.21483]
[1743329127769,1.4038,1843.7,1843.6,3.75803]
[1743329128164,2.48887,1843.7,1843.6,3.21483]
[1743329128664,2.48887,1843.7,1843.6,2.6729]
[1743329128862,2.48887,1843.7,1843.6,2.1297]
[1743329129067,2.48887,1843.7,1843.6,2.6729]
[1743329129263,2.48887,1843.7,1843.6,2.1297]
[1743329129459,1.08525,1843.4,1843.3,3.2078]
[1743329129669,1.08531,1843.3,1843.2,0.00812656]
[1743329129968,5.71281,1843.3,1843.2,0.00812656]
[1743329130270,1.08554,1842.9,1842.6,1.08571]
[1743329130469,1.4197,1842.8,1842.6,2.52111748]
[1743329130671,1.4197,1842.8,1842.7,2.53766]
[1743329130867,1.4197,1842.8,1842.7,5.74546]
[1743329131770,1.4197,1842.8,1842.7,2.53766]
[1743329132465,0.00812656,1842.9,1842.7,4.6598]
[1743329132670,0.00812656,1842.9,1842.8,3.9987]
[1743329134466,2.49346656,1842.9,1842.8,0.7097]
[1743329135463,3.8908,1843.1,1842.8,0.7097]
[1743329135464,1.08522,1843.5,1842.9,2.71387]
[1743329135667,1.06862748,1843.5,1843.2,1.08534]
[1743329135865,1.3756,1843.4,1843.3,0.7053]
[1743329136074,1.3756,1843.4,1843.3,1.4226]
[1743329136578,2.46085,1843.4,1843.3,1.4226]
[1743329136871,1.3756,1843.4,1843.3,2.50791]
[1743329139679,1.3756,1843.4,1843.3,1.4226]
[1743329139876,1.3756,1843.4,1843.3,2.50791]
[1743329145176,2.46085,1843.4,1843.3,2.50791]